bitfinex/quotes_ETHUSD_20230405
["timestamp","ask_amount","ask_price","bid_price","bid_amount"]
[1680655193176,2.65573989,1899.1,1898.4,0.47525565]
[1680655193377,2.65573989,1899.1,1898.4,0.94933565]
[1680655193577,2.65573989,1899.1,1898.4,1.23847147]
[1680655194112,2.65573989,1899.1,1898.4,2.18663147]
[1680655194413,8.23028255,1899.0,1898.4,2.18663147]
[1680655194574,8.23328255,1899.0,1898.4,2.18663147]
[1680655194776,0.02145734,1898.9,1898.3,0.53336147]
[1680655194967,2.89760255,1898.8,1898.2,0.23706]
[1680655195170,8.23028255,1898.8,1898.2,1.23855147]
[1680655195365,8.23328255,1898.8,1898.2,0.76442147]
[1680655195566,9.40440937,1898.8,1898.2,0.23706]
[1680655195802,0.23,1898.7,1898.1,0.52736147]
[1680655196011,8.23028255,1898.6,1898.2,0.23705]
[1680655196191,2.63728255,1898.6,1898.2,0.23705]
[1680655196371,2.63428255,1898.6,1898.2,0.71118]
[1680655196567,2.63428255,1898.6,1898.1,0.52736147]
[1680655196804,1.84356,1898.5,1898.1,0.52736147]
[1680655197170,1.84356,1898.5,1898.0,0.89838359]
[1680655197171,10.07384255,1898.5,1898.0,0.63336147]
[1680655197511,10.07684255,1898.5,1898.0,0.1]
[1680655197673,2.63428255,1898.4,1898.0,0.1]
[1680655198088,0.003,1898.5,1898.0,0.62736147]
[1680655198312,5.599,1898.7,1898.1,0.52736147]
[1680655198515,2.63428255,1898.6,1898.2,0.71118]
[1680655198823,2.63428255,1898.6,1898.1,0.76443147]
[1680655199000,2.63428255,1898.6,1898.0,1.37255359]
[1680655199001,2.63428255,1898.6,1898.0,1.41974506]
[1680655199215,0.5,1898.4,1898.0,0.86444147]
[1680655199388,3.13428255,1898.4,1898.0,0.86445147]
[1680655199801,2.63428255,1898.4,1898.0,0.86445147]
[1680655199985,5.62045734,1898.5,1898.1,0.52736147]
[1680655199986,0.003,1898.5,1898.1,0.52736147]
[1680655200189,0.5,1898.9,1898.1,0.52736147]
[1680655200407,2.63428255,1898.8,1898.1,0.52736147]
[1680655200614,2.63428255,1898.8,1898.3,4.0299]
[1680655200917,0.03245734,1898.9,1898.3,4.55726147]
[1680655201104,0.008,1899.1,1898.4,0.52736147]
[1680655201417,2.65573989,1899.1,1898.6,0.23701]
[1680655201618,3.48971388,1899.1,1898.5,0.23701]
[1680655201774,3.75299388,1899.1,1898.4,0.76438147]
[1680655201974,3.75299388,1899.1,1898.4,0.23702]
[1680655202174,2.92701989,1899.1,1898.4,0.40117715]
[1680655202409,3.45357989,1899.1,1898.4,0.40117715]
[1680655202614,3.45357989,1899.1,1898.4,0.16414715]
[1680655203177,8.23028255,1899.0,1898.3,1.72273506]
[1680655203420,0.5,1898.9,1898.3,0.52736147]
[1680655203717,0.003,1899.0,1898.3,0.92009198]
[1680655204016,4.59757,1899.1,1898.3,1.39419198]
[1680655204241,0.26328,1899.1,1898.4,0.52736147]
[1680655204417,6.12253,1899.3,1898.5,0.28974615]
[1680655204418,6.13353,1899.3,1898.5,0.28974615]
[1680655204634,6.13353,1899.3,1898.5,0.05273615]
[1680655204635,0.78981,1899.2,1898.5,0.05273615]
[1680655204933,0.003,1899.3,1898.6,1.04513079]
[1680655205233,0.2632,1899.7,1899.1,0.23694]
[1680655205535,0.1,1899.9,1899.2,1.01463179]
[1680655205748,0.108,1899.9,1899.3,0.10146318]
[1680655205948,0.108,1899.9,1899.3,1.34192881]
[1680655206099,0.1,1899.9,1899.3,1.81577881]
[1680655206298,0.1,1899.9,1899.4,0.18157788]
[1680655206597,0.36317,1899.9,1899.4,0.18157788]
[1680655206831,0.1,1899.9,1899.4,0.41848788]
[1680655207429,0.1,1899.9,1899.5,0.2901533]
[1680655207760,0.1,1899.9,1899.5,1.11909042]
[1680655208238,0.1,1899.9,1899.6,0.99800342]
[1680655208534,0.1,1899.9,1899.5,0.40840042]
[1680655208735,0.1,1899.9,1899.5,1.64330384]
[1680655209202,0.1,1899.9,1899.6,0.99800342]
[1680655209400,0.1,1899.9,1899.7,0.81042034]
[1680655209599,0.1,1899.9,1899.7,1.80288214]
[1680655210011,0.1,1899.9,1899.7,0.09980034]
[1680655210243,0.1,1899.9,1899.7,0.23687]
[1680655210842,0.1,1899.9,1899.7,1.7030818]
[1680655212010,0.1,1899.9,1899.5,0.36113712]
[1680655212211,0.1,1899.9,1899.5,1.35314054]
[1680655212439,0.1,1899.9,1899.5,1.82694054]
[1680655212635,0.1,1899.9,1899.6,1.41757747]
[1680655213253,0.1,1899.9,1899.6,1.89135747]
[1680655213427,0.1,1899.9,1899.6,2.24625166]
[1680655216811,0.09696372,1899.9,1899.6,2.25225166]
[1680655216960,0.09696372,1899.9,1899.7,0.22522517]
[1680655217155,0.09696372,1899.9,1899.8,1.7030518]
[1680655217651,0.09696372,1899.9,1899.8,0.71059]
[1680655217858,0.09696372,1899.9,1899.8,1.7002812]
[1680655220021,0.09696372,1899.9,1899.7,0.23122517]
[1680655220295,0.09696372,1899.9,1899.8,0.23686]
[1680655220771,0.09696372,1899.9,1899.7,0.23687]
[1680655220980,0.09696372,1899.9,1899.8,0.9924618]
[1680655221334,0.09696372,1899.9,1899.8,1.2293218]
[1680655221950,0.09696372,1899.9,1899.6,0.008]
[1680655222160,0.09696372,1899.9,1899.8,0.71059]
[1680655222358,0.09696372,1899.9,1899.8,1.7002812]
[1680655223268,1.0623008,1900.0,1899.8,1.7002812]
[1680655223452,1.0593008,1900.0,1899.9,5.55792075]
[1680655223650,0.1,1900.2,1900.0,6.15179208]
[1680655223862,0.1,1900.2,1900.1,5.63362042]
[1680655225450,0.06142767,1900.3,1900.2,0.5]
[1680655225752,0.06142767,1900.3,1900.2,4.65950374]
[1680655225954,0.06142767,1900.3,1900.2,10.25550374]
[1680655226155,0.06142767,1900.3,1900.2,13.25550374]
[1680655226842,0.06142767,1900.3,1900.2,17.55650374]
[1680655227256,0.06142767,1900.3,1900.2,13.48550374]
[1680655229202,0.1,1900.5,1900.4,5.596]
[1680655229500,0.1,1900.5,1900.4,11.44552328]
[1680655230473,0.1,1900.5,1900.4,46.44552328]
[1680655231390,0.420971,1901.0,1900.7,5.596]
[1680655231616,0.420971,1901.0,1900.7,7.49948479]
[1680655231910,0.420971,1901.0,1900.7,8.20973479]
[1680655232395,0.0247714,1900.8,1900.7,8.96202078]
[1680655233197,0.0247714,1900.8,1900.7,11.96202078]
[1680655233382,0.420971,1901.0,1900.9,0.23672]
[1680655233591,0.420971,1901.0,1900.9,1.63894502]
[1680655233758,0.420971,1901.0,1900.9,2.75713452]
[1680655234164,0.286471,1901.0,1900.9,1.63894502]
[1680655234467,0.21246732,1901.0,1900.9,1.63894502]
[1680655235359,0.13849062,1901.0,1900.9,2.37871204]
[1680655236314,0.06488119,1901.0,1900.9,2.37871204]
[1680655236469,0.06488119,1901.0,1900.9,3.57107824]
[1680655237211,0.06488119,1901.0,1900.9,9.16707824]
[1680655237369,0.1,1901.1,1900.9,9.16707824]
[1680655237569,0.1,1901.1,1901.0,2.58301779]
[1680655237980,0.0665,1901.2,1901.0,2.58301779]
[1680655238181,0.0665,1901.2,1901.1,0.25830178]
[1680655238510,0.0665,1901.2,1901.1,1.8861187]
[1680655242499,0.0665,1901.2,1901.1,2.54164669]
[1680655242918,0.0665,1901.2,1901.1,5.54164669]
[1680655243514,0.0665,1901.2,1901.1,2.54164669]
[1680655245588,0.1,1901.4,1901.1,7.80175669]
[1680655245818,0.1,1901.4,1901.2,1.16633843]
[1680655246126,0.1,1901.4,1901.3,8.75716]
[1680655246430,0.1,1901.4,1901.3,9.66380117]
[1680655246721,0.1,1901.4,1901.3,4.93020117]
[1680655246924,0.1,1901.4,1901.3,5.44883775]
[1680655247087,0.1,1901.4,1901.3,3.08203775]
[1680655247616,0.1,1901.4,1901.3,0.23668]
[1680655248184,0.1,1901.4,1901.2,0.23668]
[1680655249377,0.1,1901.4,1901.2,1.14608738]
[1680655249623,0.1,1901.4,1900.9,37.63649953]
[1680655249828,2.212,1901.1,1900.9,1.04552433]
[1680655250190,2.212,1901.1,1900.9,0.23672]
[1680655251121,2.212,1901.1,1900.7,0.23674]
[1680655251432,2.212,1901.1,1901.0,0.66854593]
[1680655252331,2.212,1901.1,1900.6,0.23675]
[1680655252535,2.212,1901.1,1900.3,0.002]
[1680655252536,0.78905,1901.0,1900.3,0.002]
[1680655252692,0.78905,1901.0,1900.1,1.84891582]
[1680655252693,2.47508,1900.6,1900.1,1.06253223]
[1680655252892,0.011,1900.8,1900.1,1.76500223]
[1680655253094,9.9635,1901.2,1900.4,1.65747]
[1680655253095,2.22,1901.1,1900.4,1.65747]
[1680655253331,2.212,1901.1,1900.4,1.65747]
[1680655253533,2.22,1901.1,1900.4,1.65747]
[1680655253833,0.26597,1901.3,1900.4,1.65747]
[1680655253834,2.212,1900.9,1900.4,1.65747]
[1680655253990,2.212,1900.9,1900.4,1.823217]
[1680655254399,2.212,1900.9,1900.4,0.876087]
[1680655254604,2.212,1900.9,1900.5,0.94538153]
[1680655254906,2.201,1900.9,1900.5,1.18215153]
[1680655255322,2.201,1900.9,1900.4,0.23678]
[1680655255643,2.201,1900.9,1900.4,1.18216153]
[1680655256217,2.201,1900.9,1900.4,0.94538153]
[1680655256532,2.46403,1900.9,1900.4,1.08727968]
[1680655256737,2.201,1900.9,1900.4,1.32406968]
[1680655258616,2.201,1900.9,1900.4,1.84236053]
[1680655260561,2.46403,1900.9,1900.4,1.60557053]
[1680655260747,2.201,1900.9,1900.4,1.60557053]
[1680655260950,2.201,1900.9,1900.4,1.84236053]
[1680655261477,2.201,1900.9,1900.4,0.75508085]
[1680655261681,2.2,1900.7,1900.4,0.51829085]
[1680655261966,2.2,1900.7,1900.2,0.2368]
[1680655262124,2.2,1900.7,1900.2,1.19325546]
[1680655262466,2.2,1900.7,1900.2,1.35994601]
[1680655263435,2.2,1900.7,1900.2,1.83357601]
[1680655263768,2.2,1900.7,1900.2,1.35994601]
[1680655263922,2.2,1900.7,1900.2,1.12314601]
[1680655264122,2.2,1900.7,1900.2,1.35995601]
[1680655264439,2.214,1900.4,1900.0,1.03616397]
[1680655264768,0.78931,1900.4,1899.9,0.87627535]
[1680655265268,0.28456734,1900.4,1899.9,0.87627535]
[1680655265468,0.28456734,1900.4,1899.9,1.11312535]
[1680655265469,0.02145734,1900.4,1899.9,1.11312535]
[1680655265676,0.28455734,1900.4,1899.9,0.87627535]
[1680655266033,0.02145734,1900.4,1899.9,0.87627535]
[1680655266232,0.02145734,1900.4,1900.0,0.71051]
[1680655266471,0.02145734,1900.4,1900.0,1.62452111]
[1680655266651,0.02145734,1900.4,1900.0,1.15084111]
[1680655266973,0.02145734,1900.4,1900.0,0.91401111]
[1680655267277,0.008,1900.6,1900.0,1.8799799]
[1680655267449,0.008,1900.7,1900.0,1.8799799]
[1680655267783,0.78921,1900.6,1900.0,1.1694599]
[1680655267936,0.78921,1900.6,1900.0,0.91401111]
[1680655268385,0.78921,1900.6,1900.0,1.15084111]
[1680655268386,0.02145734,1900.5,1900.0,1.15084111]
[1680655268590,0.28453734,1900.5,1900.0,0.91401111]
[1680655268988,0.10252607,1900.5,1900.0,1.15085111]
[1680655269286,0.02145734,1900.5,1900.1,1.65775]
[1680655269834,0.02145734,1900.5,1900.1,2.62251242]
[1680655270773,0.02145734,1900.5,1900.1,1.67522242]
[1680655271158,0.02145734,1900.5,1900.1,1.20158242]
[1680655271437,0.02145734,1900.5,1900.1,0.96476242]
[1680655271874,0.28454734,1900.5,1900.1,0.96476242]
[1680655272189,0.81071734,1900.5,1899.9,1.64048682]
[1680655272336,0.81071734,1900.5,1899.9,2.61742499]
[1680655272538,0.02145734,1900.5,1899.9,2.64397499]
[1680655272756,0.28453734,1900.5,1899.9,2.64397499]
[1680655272968,0.28454734,1900.5,1900.0,1.23469863]
[1680655273204,0.28454734,1900.5,1900.0,0.2643975]
[1680655273404,0.28454734,1900.5,1899.9,0.66598535]
[1680655273609,0.02145734,1900.5,1899.9,1.34046385]
[1680655273812,0.02145734,1900.5,1899.9,0.37016272]
[1680655274078,0.28454734,1900.5,1899.9,0.37016272]
[1680655274488,0.28454734,1900.5,1899.9,0.13331272]
[1680655274687,0.36561707,1900.5,1899.9,0.13331272]
[1680655274907,2.91882989,1900.5,1899.9,0.13331272]
[1680655275105,3.45299989,1900.5,1899.9,0.13331272]
[1680655277519,3.45299989,1900.5,1900.0,0.91644116]
[1680655278027,2.214,1900.1,1900.0,0.91644116]
[1680655278324,2.214,1900.1,1899.5,0.106]
[1680655278325,0.5,1899.9,1899.5,0.106]
[1680655278489,2.192,1899.6,1899.5,0.1]
[1680655278689,2.98163,1899.6,1899.5,0.1]
[1680655278896,2.45521,1899.6,1899.5,0.1]
[1680655279109,2.192,1899.6,1899.5,0.1]
[1680655279319,2.192,1899.6,1899.5,0.95464966]
[1680655280280,2.45521,1899.6,1899.5,0.95464966]
[1680655280906,2.490161,1899.6,1899.5,0.95464966]
[1680655281293,2.490161,1899.6,1899.5,0.1]
[1680655283426,2.192,1899.6,1899.5,0.1]
[1680655283725,2.45521,1899.6,1899.5,0.1]
[1680655283906,2.192,1899.6,1899.5,0.1]
[1680655284630,6.41001734,1899.8,1899.5,2.76462695]
[1680655284631,0.003,1899.8,1899.5,2.76462695]
[1680655284923,10.1052,1900.2,1899.6,0.51334269]
[1680655284924,0.26613,1900.2,1899.6,0.51334269]
[1680655285082,2.201,1899.9,1899.5,0.33689]
[1680655285283,2.201,1899.9,1899.6,0.8548714]
[1680655287347,2.201,1899.9,1899.6,1.85010393]
[1680655287492,0.02945734,1900.2,1899.7,0.99523253]
[1680655287493,0.003,1900.2,1899.7,0.99523253]
[1680655287693,12.4342,1900.7,1899.7,0.99523253]
[1680655287694,12.4452,1900.7,1899.8,1.65802]
[1680655288009,2.192,1900.4,1899.7,0.45849145]
[1680655288209,0.76313,1900.3,1899.7,0.004]
[1680655288540,3.92364255,1900.3,1899.5,0.34289]
[1680655288737,8.99341255,1900.3,1899.5,0.81669]
[1680655289038,8.23328255,1900.3,1899.6,0.081669]
[1680655289238,8.23328255,1900.3,1899.8,0.23686]
[1680655290304,0.003,1900.3,1899.8,0.23686]
[1680655290638,0.26312,1900.3,1899.8,0.071061]
[1680655290946,6.12517,1900.5,1899.6,0.47378]
[1680655291241,6.12517,1900.5,1899.7,0.71061]
[1680655291242,2.216,1900.2,1899.7,0.71061]
[1680655291452,0.003,1900.4,1899.8,0.98415045]
[1680655291593,2.216,1900.6,1900.0,0.7105]
[1680655292020,0.011,1900.8,1900.0,1.67526242]
[1680655292229,5.454851,1901.0,1900.1,0.9592243]
[1680655292230,2.216,1900.9,1900.1,0.9592243]
[1680655292432,2.216,1900.9,1900.3,0.71038]
[1680655293007,2.216,1900.9,1900.3,1.65852979]
[1680655293220,2.216,1900.9,1900.3,1.18493979]
[1680655293547,2.216,1900.9,1900.4,1.30343377]
[1680655293727,0.420951,1901.0,1900.4,1.77701377]
[1680655294098,0.420951,1901.0,1900.4,2.04449483]
[1680655296326,0.420951,1901.0,1900.5,0.85463229]
[1680655296527,0.420951,1901.0,1900.7,0.23675]
[1680655296699,0.420951,1901.0,1900.8,1.17103994]
[1680655297323,0.420951,1901.0,1900.6,0.23676]
[1680655297524,0.420951,1901.0,1900.7,0.93707762]
[1680655298516,0.420951,1901.0,1900.5,0.23677]
[1680655298745,0.420951,1901.0,1900.6,1.17660544]
[1680655298917,0.420951,1901.0,1900.7,0.11766054]
[1680655299323,0.420951,1901.0,1900.5,0.47355]
[1680655299655,0.420951,1901.0,1900.6,0.23676]
[1680655299816,0.420951,1901.0,1900.6,0.71029]
[1680655300218,0.420951,1901.0,1900.6,0.23676]
[1680655301549,0.41896946,1901.0,1900.6,0.24076]
[1680655301732,0.41696946,1901.0,1900.6,0.23676]
[1680655302405,0.41696946,1901.0,1900.6,0.307791]
[1680655302607,0.41696946,1901.0,1900.6,0.781321]
[1680655302805,0.41696946,1901.0,1900.6,0.71029]
[1680655303073,2.63428255,1900.9,1900.4,0.27348106]
[1680655303243,2.63428255,1900.9,1900.2,0.24281]
[1680655303244,2.209,1900.5,1900.2,0.24281]
[1680655303427,2.209,1900.5,1900.2,0.006]
[1680655303627,2.209,1900.5,1900.1,0.006]
[1680655303957,2.209,1900.5,1900.1,0.23682]
[1680655304155,2.209,1900.5,1900.0,1.27346245]
[1680655304325,2.209,1900.5,1900.0,1.51382829]
[1680655305356,2.209,1900.5,1900.0,1.98750829]
[1680655306048,2.47806,1900.7,1900.0,1.98750829]
[1680655306429,2.215,1900.7,1900.1,0.96199328]
[1680655306630,2.215,1900.7,1900.2,0.80662933]
[1680655307768,2.47806,1900.7,1900.2,0.09619933]
[1680655308065,2.219,1900.9,1900.2,0.80663933]
[1680655308371,2.216,1900.9,1900.3,0.08066393]
[1680655308519,2.216,1900.9,1900.4,0.23678]
[1680655309363,2.216,1900.9,1900.3,0.08066393]
[1680655309662,2.50048734,1900.9,1900.2,0.47363]
[1680655311272,2.48148734,1900.9,1900.3,0.97817554]
[1680655311673,0.003,1901.1,1900.5,0.13]
[1680655311876,10.79338,1901.3,1900.6,0.71026]
[1680655311877,4.9374,1901.3,1900.6,0.71026]
[1680655312083,2.207,1901.2,1900.6,0.71026]
[1680655312264,1.101,1901.1,1900.6,0.71026]
[1680655313449,1.101,1901.1,1900.6,3.07793]
[1680655313961,1.209,1901.4,1900.7,0.93430994]
[1680655314160,1.201,1901.4,1900.9,0.71017]
[1680655314362,1.201,1901.4,1901.1,0.2367]
[1680655314536,1.201,1901.4,1901.0,0.307717]
[1680655315078,1.201,1901.4,1900.9,0.23672]
[1680655315247,1.201,1901.4,1900.9,0.23671]
[1680655315588,1.105,1901.3,1900.6,0.23675]
[1680655315771,1.105,1900.9,1900.4,0.006]
[1680655315940,1.105,1900.9,1900.4,0.23678]
[1680655316134,1.105,1900.9,1900.3,0.4796]
[1680655316135,1.36803,1900.9,1900.3,0.24279]
[1680655316455,1.89409,1900.9,1900.3,0.21910415]
[1680655316650,9.59831255,1900.9,1900.2,0.006]
[1680655316968,9.59831255,1900.9,1900.2,0.2368]
[1680655316969,1.102,1900.7,1900.2,0.2368]
[1680655317165,2.215,1900.8,1900.1,1.00701147]
[1680655317482,0.26306,1900.7,1900.1,1.0772208]
[1680655317684,2.49950734,1900.8,1900.1,1.0772208]
[1680655317851,2.49950734,1900.8,1900.1,0.54985933]
[1680655318180,2.23645734,1900.8,1900.2,0.29179593]
[1680655318481,9.5037678,1900.9,1900.2,0.29179593]
[1680655318482,0.003,1900.9,1900.3,0.95368675]
[1680655318644,2.195,1901.0,1900.4,0.33214868]
[1680655318842,2.195,1901.0,1900.5,0.94261342]
[1680655319039,2.195,1901.0,1900.5,1.17938342]
[1680655319365,2.195,1901.0,1900.5,1.17937342]
[1680655321778,2.195,1901.0,1900.5,1.65292342]
[1680655322182,0.266,1901.2,1900.5,1.65292342]
[1680655322183,2.215,1901.1,1900.5,1.65292342]
[1680655322413,0.003,1901.2,1901.1,0.00374963]
[1680655322414,0.526,1901.2,1901.1,0.00374963]
[1680655322686,0.26299,1901.2,1901.1,0.00374963]
[1680655323050,0.420884,1901.3,1901.1,0.71385963]
[1680655323460,0.420884,1901.3,1901.1,0.87993159]
[1680655324178,0.420884,1901.3,1901.1,1.79487186]
[1680655324671,0.420884,1901.3,1901.2,0.91494027]
[1680655324872,0.420884,1901.3,1901.2,2.57178027]
[1680655326508,0.35913674,1901.3,1901.2,3.18925285]
[1680655326662,0.35913674,1901.3,1901.2,3.76205729]
[1680655327287,0.2885923,1901.3,1901.2,3.76205729]
[1680655328265,0.21867193,1901.3,1901.2,3.76205729]
[1680655329262,0.14933423,1901.3,1901.2,3.76205729]
[1680655330421,0.08057434,1901.3,1901.2,3.76205729]
[1680655331371,0.01238745,1901.3,1901.2,3.76205729]
[1680655331562,0.1,1901.8,1901.2,3.76205729]
[1680655331563,0.003,1902.1,1901.3,0.5]
[1680655331766,0.26286,1902.2,1901.4,1.12394166]
[1680655331767,2.45688,1902.0,1901.4,1.12394166]
[1680655332063,2.46788,1902.1,1901.4,1.12994166]
[1680655332266,2.205,1902.1,1901.6,0.23663]
[1680655332622,2.215,1901.9,1901.5,0.006]
[1680655332920,2.215,1901.9,1901.5,0.88728166]
[1680655333209,2.215,1901.9,1901.6,0.88728166]
[1680655333409,2.215,1901.9,1901.6,1.12391166]
[1680655333785,2.215,1901.9,1901.6,0.88728166]
[1680655334109,2.215,1901.9,1901.6,1.12391166]
[1680655334506,2.215,1901.9,1901.7,0.90199162]
[1680655334702,2.215,1901.9,1901.7,0.66937162]
[1680655334906,2.215,1901.9,1901.7,0.66537162]
[1680655336681,2.4365,1901.9,1901.7,0.66537162]
[1680655336876,0.02145734,1902.1,1901.7,0.66537162]
[1680655336877,2.218,1902.1,1901.7,1.37526162]
[1680655337231,2.218,1902.4,1901.8,0.87622229]
[1680655337375,2.218,1902.4,1901.9,0.32421223]
[1680655337376,2.215,1902.4,1901.9,0.32421223]
[1680655337689,2.215,1902.4,1901.8,1.11683229]
[1680655337882,2.47783,1902.4,1901.8,1.11283229]
[1680655338077,2.47783,1902.4,1901.8,0.24261]
[1680655338324,2.195,1902.2,1901.8,0.23661]
[1680655338823,2.195,1902.2,1901.7,0.24261]
[1680655339118,2.215,1902.0,1901.7,0.006]
[1680655339296,2.215,1902.0,1901.6,0.24263]
[1680655339297,2.4365,1902.0,1901.6,0.24263]
[1680655339695,2.4365,1902.0,1901.6,0.23663]
[1680655339888,2.215,1902.0,1901.6,0.23663]
[1680655340191,0.107,1902.5,1901.6,0.23663]
[1680655340192,0.007,1902.8,1902.1,5.596]
[1680655340404,0.01,1903.1,1902.5,0.84582102]
[1680655340706,0.01,1903.1,1902.6,0.70953]
[1680655340879,2.215,1903.0,1902.6,0.2365]
[1680655341080,0.01,1903.1,1902.5,0.23652]
[1680655341081,2.205,1902.8,1902.5,0.23652]
[1680655341355,5.606,1903.1,1902.6,1.07128037]
[1680655341356,0.002,1903.0,1902.6,1.07128037]
[1680655341624,0.01,1903.1,1903.0,0.70939]
[1680655341807,0.01,1903.1,1903.0,0.95756939]
[1680655342195,0.01,1903.1,1903.0,0.48463939]
[1680655342396,0.06,1903.3,1903.0,0.24817939]
[1680655343010,0.06,1903.3,1903.0,0.80715391]
[1680655343326,0.06,1903.3,1903.1,0.80715391]
[1680655343623,0.06,1903.3,1903.1,1.60329737]
[1680655343985,0.06,1903.3,1903.1,8.61802737]
[1680655344186,0.06,1903.3,1903.1,8.62002737]
[1680655344388,0.1,1903.6,1903.2,0.86200274]
[1680655344590,0.1,1903.6,1903.3,1.50263112]
[1680655344794,0.1,1903.6,1903.3,1.02977112]
[1680655345402,0.1,1903.6,1903.3,1.33460862]
[1680655345724,0.1,1903.6,1903.3,0.5412575]
[1680655346434,0.1,1903.6,1903.4,0.79059099]
[1680655347029,0.1,1904.2,1903.5,10.85655507]
[1680655347030,0.102,1904.2,1903.5,10.85655507]
[1680655347232,0.102,1904.2,1904.1,6.36727419]
[1680655347533,2.215,1904.9,1904.1,1.00960419]
[1680655347685,2.23645734,1904.9,1904.2,0.66887866]
[1680655347889,0.2215,1904.8,1904.2,0.66887866]
[1680655348226,2.23645734,1904.9,1904.2,0.90518866]
[1680655348437,2.215,1904.7,1904.2,0.66887866]
[1680655348752,2.215,1904.7,1904.2,0.90518866]
[1680655348898,0.1,1904.8,1904.2,0.90518866]
[1680655348899,0.1,1904.8,1904.2,0.99570753]
[1680655349094,0.1,1904.8,1904.2,0.90518866]
[1680655349710,0.1,1904.8,1904.2,0.91485827]
[1680655350303,0.1,1904.8,1904.3,0.70760949]
[1680655350505,0.1,1904.8,1904.4,0.23628]
[1680655351338,0.1,1904.8,1904.4,0.90931454]
[1680655351736,0.1,1904.8,1904.5,0.67303454]
[1680655351895,0.1,1904.8,1904.5,0.90931454]
[1680655352104,0.1,1904.8,1904.5,0.90655789]
[1680655353059,0.1,1904.8,1904.2,0.47462]
[1680655353197,0.1,1904.8,1904.3,0.2363]
[1680655353397,0.1,1904.8,1904.4,0.67579133]
[1680655353598,0.1,1904.8,1904.5,0.23628]
[1680655353848,0.1,1904.8,1904.6,0.67027789]
[1680655354055,0.1,1904.8,1904.7,0.70876]
[1680655354194,0.012,1905.4,1904.8,0.5]
[1680655354394,0.007,1905.4,1905.3,0.64547459]
[1680655354955,0.007,1905.4,1905.2,0.23618]
[1680655355114,0.007,1905.4,1904.9,4.9522]
[1680655355316,0.007,1905.4,1905.0,0.64271939]
[1680655355851,0.007,1905.4,1904.8,0.62218756]
[1680655356073,0.007,1905.4,1904.9,0.64547459]
[1680655356370,0.007,1905.4,1904.6,8.80065023]
[1680655356371,2.21645734,1905.3,1905.1,0.62427533]
[1680655356589,2.215,1905.2,1905.1,0.62427533]
[1680655356872,3.81178873,1905.2,1905.1,0.62427533]
[1680655357362,3.81178873,1905.2,1904.3,0.2363]
[1680655357519,1.59678873,1905.2,1904.3,0.90106503]
[1680655357718,1.59678873,1905.2,1904.3,0.66476503]
[1680655357920,5.596,1905.0,1904.1,0.008]
[1680655358115,2.215,1904.7,1904.1,0.23632]
[1680655358349,2.215,1904.3,1904.0,0.24033]
[1680655358573,2.215,1904.3,1904.0,0.006]
[1680655358751,0.26256,1904.3,1903.6,0.006]
[1680655358956,0.341326,1904.3,1903.5,0.006]
[1680655359156,0.078766,1904.3,1903.5,0.2404]
[1680655359361,0.48402,1904.6,1903.5,0.2364]
[1680655359552,0.26252,1904.6,1903.5,0.2364]
[1680655359797,0.26252,1904.6,1903.6,0.7033672]
[1680655359930,8.49280255,1904.6,1903.6,0.7033672]
[1680655360281,8.23028255,1904.5,1903.5,0.23639]
[1680655360568,0.82302826,1904.4,1903.5,0.9397572]
[1680655360778,2.63428255,1904.4,1903.5,0.9457572]
[1680655360980,8.25173989,1904.3,1903.4,0.47882]
[1680655361286,0.82517399,1904.2,1903.5,0.2364]
[1680655361579,0.82517399,1904.2,1903.5,0.2404]
[1680655361781,0.02145734,1904.1,1903.5,0.2364]
[1680655361988,0.10612047,1904.1,1903.5,0.2364]
[1680655362149,0.10612047,1904.1,1903.5,0.90356057]
[1680655362150,0.02145734,1904.1,1903.5,0.90356057]
[1680655362336,0.02145734,1904.1,1903.6,0.71716057]
[1680655362691,0.02145734,1904.1,1903.6,0.23639]
[1680655363069,0.02145734,1904.1,1903.7,0.95077161]
[1680655363382,0.007,1904.3,1903.7,0.95077161]
[1680655363589,0.02145734,1904.3,1903.7,0.95077161]
[1680655363945,0.02145734,1904.3,1903.6,0.070919]
[1680655364146,8.25173989,1904.3,1903.3,5.0884]
[1680655364458,8.26073989,1904.3,1903.5,0.23639]
[1680655364776,5.596,1904.1,1903.3,0.23842]
[1680655364940,2.215,1903.9,1903.4,0.23641]
[1680655365388,0.007,1904.0,1903.5,0.72543833]
[1680655365550,2.196,1904.1,1903.5,0.72543833]
[1680655365551,2.194,1904.1,1903.5,0.96182833]
[1680655365750,2.194,1904.1,1903.5,0.72543833]
[1680655366192,2.45659,1904.1,1903.5,0.72543833]
[1680655366395,2.45659,1904.1,1903.1,0.13340968]
[1680655366596,0.245659,1904.0,1903.3,0.23642]
[1680655366795,2.13178334,1904.1,1903.3,0.004]
[1680655366979,2.13178334,1904.1,1903.4,0.72543833]
[1680655367255,2.13178334,1904.1,1903.5,0.2364]
[1680655367400,2.39437334,1904.1,1903.3,0.24242]
[1680655367560,2.13178334,1904.1,1903.3,0.23642]
[1680655367768,0.21317833,1904.0,1903.3,0.23642]
[1680655367978,0.47577833,1904.0,1903.3,0.23642]
[1680655368284,0.21317833,1904.0,1903.3,0.23642]
[1680655368614,0.02145734,1903.9,1903.3,0.23642]
[1680655369181,0.02145734,1903.9,1903.2,0.006]
[1680655369519,0.02145734,1903.9,1903.3,0.23642]
[1680655369662,0.02145734,1903.9,1903.3,0.006]
[1680655369865,0.02145734,1903.9,1903.2,0.006]
[1680655369866,2.215,1903.6,1903.2,0.006]
[1680655370059,0.02145734,1903.5,1903.1,0.006]
[1680655370278,0.02145734,1903.5,1903.1,0.24244]
[1680655370695,0.02145734,1903.5,1903.1,0.006]
[1680655370897,0.50777307,1903.5,1903.0,1.221292]
[1680655371126,0.02145734,1903.5,1903.0,1.455742]